Workbook

Sheet Sheet1
B1: l'Hopital's Rule
B3: This DIGMath spreadsheet provides a
B4: graphical representation of l'Hopital's Rule for
B5: finding the limit of the indeterminate form 0/0
C6: lim x → a f(x) / g(x)
B7: where lim x → a f(x) = lim x → a g(x) = 0
A11: Enter the first function: f(x) = | E11: sin(3*x)
C12: =IF(Sheet2!D2=0,"","That is not zero at the point a") -> 
A13: Enter the second function: g(x) = | E13: x
C14: =IF(Sheet2!E2=0,"","That is not zero at the point a") -> 
A16: What is the limit point a = | D16: 0
B17: =IF(OR(Sheet2!D2<>0,Sheet2!E2<>0),"Both functions have to be 0 at this point!!","") -> 
I18: The graphs of the ratios f(x)/g(x) and f'(x)/g'(x)
A19: Now enter the interval for t :
B20: Starting value xMin = | D20: -0.3 | I20: Now trace along the parametric curve:
B21: Ending value xMax = | D21: 0.3 | I21: x = | J21: =D20+K21*dx -> 0.1311377246 | K21: 360
I22: f/g = | J22: =LOOKUP(J$21,Sheet2!C3:C504,Sheet2!F3:F504) -> 2.923209709
I23: f '/g ' = | J23: =LOOKUP(J$21,Sheet2!C4:C505,Sheet2!I4:I505) -> 2.768746198
A26: Click each item below for suggestions and investigations
B27: Item 1
B28: Item 2
B29: Item 3
B30: Item 4
B31: Item 5
B32: Item 6
A36: To access/download all the DIGMath Apps for Calculus
A37: Click this link: | C37: DIGMath for Calculus
A39: Created by: Sheldon P. Gordon | H39: When x = | I39: =J21 -> 0.1311377246 | O39: When x = | P39: =I39 -> 0.1311377246
A40: Farmingdale State College | H40: f(x) = | I40: =Sheet2!K14 -> 0.3833430697 | O40: f '(x) = | P40: =Sheet2!K21 -> 2.768746198
A41: Development of this module was supported by the | H41: g(x) = | I41: =Sheet2!K16 -> 0.1311377246 | O41: g'(x) = | P41: =Sheet2!K23 -> 1
A42: NSF's Division of Undergraduate Education
A43: under grants DUE-0310123 and DUE-0442160.

Sheet Sheet2
C1: x | D1: y = f(x) | E1: y = g(x) | F1: f(x)/g(x) | G1: f' | H1: g' | I1: f'/g/ | J1: Tracing points
C2: =a0 -> 0 | D2: =SIN(3*x) -> 0 | E2: =x -> 0
C3: =a -> -0.3 | D3: -0.7833269096 | E3: -0.3 | F3: =D3/E3 -> 2.611089699 | G3: =(D4-D3)/dx -> 1.869047411 | H3: =(E4-E3)/dx -> 1 | I3: =G3/H3 -> 1.869047411 | J3: 0 | K3: 0
C4: =C3+dx -> -0.2988023952 | D4: -0.7810885295 | E4: -0.2988023952 | F4: =D4/E4 -> 2.614063816 | G4: 1.87746632 | H4: 1 | I4: =G4/H4 -> 1.87746632 | J4: =Sheet1!J$21 -> 0.1311377246 | K4: =Sheet1!J22 -> 2.923209709
C5: -0.2976047904 | D5: -0.7788400668 | E5: -0.2976047904 | F5: 2.617027991 | G5: 1.885860994 | H5: 1 | I5: 1.885860994 | J5: on curve
C6: -0.2964071856 | D6: -0.7765815507 | E6: -0.2964071856 | F6: 2.619982201 | G6: 1.894231325 | H6: 1 | I6: 1.894231325
C7: -0.2952095808 | D7: -0.7743130102 | E7: -0.2952095808 | F7: 2.622926424 | G7: 1.902577205 | H7: 1 | I7: 1.902577205 | J7: 0 | K7: 0
C8: -0.294011976 | D8: -0.7720344746 | E8: -0.294011976 | F8: 2.625860637 | G8: 1.910898526 | H8: 1 | I8: 1.910898526 | J8: =Sheet1!J$21 -> 0.1311377246 | K8: =Sheet1!J23 -> 2.768746198
C9: -0.2928143713 | D9: -0.7697459734 | E9: -0.2928143713 | F9: 2.628784817 | G9: 1.91919518 | H9: 1 | I9: 1.91919518 | J9: on derivatives
C10: -0.2916167665 | D10: -0.767447536 | E10: -0.2916167665 | F10: 2.631698943 | G10: 1.927467061 | H10: 1 | I10: 1.927467061
C11: -0.2904191617 | D11: -0.7651391922 | E11: -0.2904191617 | F11: 2.634602992 | G11: 1.935714061 | H11: 1 | I11: 1.935714061
A12: delta x = | B12: =(Sheet1!D21-Sheet1!D20)/501 -> 0.00119760479 | C12: -0.2892215569 | D12: -0.7628209718 | E12: -0.2892215569 | F12: 2.637496942 | G12: 1.943936075 | H12: 1 | I12: 1.943936075 | J12: Points on graphs of functions
C13: -0.2880239521 | D13: -0.7604929046 | E13: -0.2880239521 | F13: 2.640380771 | G13: 1.952132995 | H13: 1 | I13: 1.952132995
C14: -0.2868263473 | D14: -0.7581550208 | E14: -0.2868263473 | F14: 2.643254457 | G14: 1.960304717 | H14: 1 | I14: 1.960304717 | J14: =J8 -> 0.1311377246 | K14: =LOOKUP(J14,C$3:C$504,D$3:D$504) -> 0.3833430697
C15: -0.2856287425 | D15: -0.7558073505 | E15: -0.2856287425 | F15: 2.646117978 | G15: 1.968451135 | H15: 1 | I15: 1.968451135
C16: -0.2844311377 | D16: -0.753449924 | E16: -0.2844311377 | F16: 2.648971312 | G16: 1.976572143 | H16: 1 | I16: 1.976572143 | J16: =J14 -> 0.1311377246 | K16: =LOOKUP(J16,C3:C504,E3:E504) -> 0.1311377246
C17: -0.2832335329 | D17: -0.7510827717 | E17: -0.2832335329 | F17: 2.651814437 | G17: 1.984667638 | H17: 1 | I17: 1.984667638
C18: -0.2820359281 | D18: -0.7487059243 | E18: -0.2820359281 | F18: 2.654647332 | G18: 1.992737513 | H18: 1 | I18: 1.992737513
C19: -0.2808383234 | D19: -0.7463194123 | E19: -0.2808383234 | F19: 2.657469975 | G19: 2.000781666 | H19: 1 | I19: 2.000781666 | J19: Points on graphs of derivatives
C20: -0.2796407186 | D20: -0.7439232666 | E20: -0.2796407186 | F20: 2.660282345 | G20: 2.008799992 | H20: 1 | I20: 2.008799992
C21: -0.2784431138 | D21: -0.7415175181 | E21: -0.2784431138 | F21: 2.66308442 | G21: 2.016792388 | H21: 1 | I21: 2.016792388 | J21: =J4 -> 0.1311377246 | K21: =LOOKUP(J21,C$3:C$504,G$3:G$504) -> 2.768746198
C22: -0.277245509 | D22: -0.7391021978 | E22: -0.277245509 | F22: 2.665876178 | G22: 2.02475875 | H22: 1 | I22: 2.02475875
C23: -0.2760479042 | D23: -0.7366773371 | E23: -0.2760479042 | F23: 2.668657598 | G23: 2.032698976 | H23: 1 | I23: 2.032698976 | J23: =J21 -> 0.1311377246 | K23: =LOOKUP(J23,C$3:C$504,H$3:H$504) -> 1
C24: -0.2748502994 | D24: -0.734242967 | E24: -0.2748502994 | F24: 2.67142866 | G24: 2.040612964 | H24: 1 | I24: 2.040612964
C25: -0.2736526946 | D25: -0.7317991192 | E25: -0.2736526946 | F25: 2.674189341 | G25: 2.048500611 | H25: 1 | I25: 2.048500611
C26: -0.2724550898 | D26: -0.729345825 | E26: -0.2724550898 | F26: 2.676939622 | G26: 2.056361815 | H26: 1 | I26: 2.056361815
C27: -0.271257485 | D27: -0.7268831163 | E27: -0.271257485 | F27: 2.679679479 | G27: 2.064196474 | H27: 1 | I27: 2.064196474
C28: -0.2700598802 | D28: -0.7244110247 | E28: -0.2700598802 | F28: 2.682408894 | G28: 2.072004489 | H28: 1 | I28: 2.072004489
C29: -0.2688622754 | D29: -0.7219295822 | E29: -0.2688622754 | F29: 2.685127845 | G29: 2.079785758 | H29: 1 | I29: 2.079785758
C30: -0.2676646707 | D30: -0.7194388208 | E30: -0.2676646707 | F30: 2.68783631 | G30: 2.08754018 | H30: 1 | I30: 2.08754018
C31: -0.2664670659 | D31: -0.7169387727 | E31: -0.2664670659 | F31: 2.69053427 | G31: 2.095267655 | H31: 1 | I31: 2.095267655
C32: -0.2652694611 | D32: -0.7144294701 | E32: -0.2652694611 | F32: 2.693221704 | G32: 2.102968084 | H32: 1 | I32: 2.102968084
C33: -0.2640718563 | D33: -0.7119109454 | E33: -0.2640718563 | F33: 2.695898592 | G33: 2.110641368 | H33: 1 | I33: 2.110641368
C34: -0.2628742515 | D34: -0.7093832312 | E34: -0.2628742515 | F34: 2.698564911 | G34: 2.118287406 | H34: 1 | I34: 2.118287406
C35: -0.2616766467 | D35: -0.7068463601 | E35: -0.2616766467 | F35: 2.701220644 | G35: 2.125906101 | H35: 1 | I35: 2.125906101
C36: -0.2604790419 | D36: -0.7043003647 | E36: -0.2604790419 | F36: 2.703865768 | G36: 2.133497355 | H36: 1 | I36: 2.133497355
C37: -0.2592814371 | D37: -0.7017452781 | E37: -0.2592814371 | F37: 2.706500264 | G37: 2.141061068 | H37: 1 | I37: 2.141061068
C38: -0.2580838323 | D38: -0.6991811331 | E38: -0.2580838323 | F38: 2.709124112 | G38: 2.148597144 | H38: 1 | I38: 2.148597144
C39: -0.2568862275 | D39: -0.6966079629 | E39: -0.2568862275 | F39: 2.711737291 | G39: 2.156105485 | H39: 1 | I39: 2.156105485
C40: -0.2556886228 | D40: -0.6940258006 | E40: -0.2556886228 | F40: 2.714339782 | G40: 2.163585995 | H40: 1 | I40: 2.163585995
C41: -0.254491018 | D41: -0.6914346797 | E41: -0.254491018 | F41: 2.716931565 | G41: 2.171038576 | H41: 1 | I41: 2.171038576
C42: -0.2532934132 | D42: -0.6888346335 | E42: -0.2532934132 | F42: 2.719512619 | G42: 2.178463133 | H42: 1 | I42: 2.178463133
C43: -0.2520958084 | D43: -0.6862256956 | E43: -0.2520958084 | F43: 2.722082925 | G43: 2.18585957 | H43: 1 | I43: 2.18585957
C44: -0.2508982036 | D44: -0.6836078997 | E44: -0.2508982036 | F44: 2.724642464 | G44: 2.193227791 | H44: 1 | I44: 2.193227791
C45: -0.2497005988 | D45: -0.6809812796 | E45: -0.2497005988 | F45: 2.727191216 | G45: 2.200567701 | H45: 1 | I45: 2.200567701
C46: -0.248502994 | D46: -0.6783458692 | E46: -0.248502994 | F46: 2.72972916 | G46: 2.207879205 | H46: 1 | I46: 2.207879205
C47: -0.2473053892 | D47: -0.6757017024 | E47: -0.2473053892 | F47: 2.732256279 | G47: 2.21516221 | H47: 1 | I47: 2.21516221
C48: -0.2461077844 | D48: -0.6730488136 | E48: -0.2461077844 | F48: 2.734772551 | G48: 2.22241662 | H48: 1 | I48: 2.22241662
C49: -0.2449101796 | D49: -0.6703872368 | E49: -0.2449101796 | F49: 2.737277959 | G49: 2.229642343 | H49: 1 | I49: 2.229642343
C50: -0.2437125749 | D50: -0.6677170064 | E50: -0.2437125749 | F50: 2.739772483 | G50: 2.236839285 | H50: 1 | I50: 2.236839285
C51: -0.2425149701 | D51: -0.665038157 | E51: -0.2425149701 | F51: 2.742256104 | G51: 2.244007353 | H51: 1 | I51: 2.244007353
C52: -0.2413173653 | D52: -0.662350723 | E52: -0.2413173653 | F52: 2.744728803 | G52: 2.251146455 | H52: 1 | I52: 2.251146455
C53: -0.2401197605 | D53: -0.6596547393 | E53: -0.2401197605 | F53: 2.74719056 | G53: 2.258256499 | H53: 1 | I53: 2.258256499
C54: -0.2389221557 | D54: -0.6569502404 | E54: -0.2389221557 | F54: 2.749641357 | G54: 2.265337392 | H54: 1 | I54: 2.265337392
C55: -0.2377245509 | D55: -0.6542372615 | E55: -0.2377245509 | F55: 2.752081176 | G55: 2.272389044 | H55: 1 | I55: 2.272389044
C56: -0.2365269461 | D56: -0.6515158375 | E56: -0.2365269461 | F56: 2.754509997 | G56: 2.279411362 | H56: 1 | I56: 2.279411362
C57: -0.2353293413 | D57: -0.6487860036 | E57: -0.2353293413 | F57: 2.756927801 | G57: 2.286404258 | H57: 1 | I57: 2.286404258
C58: -0.2341317365 | D58: -0.6460477949 | E58: -0.2341317365 | F58: 2.759334571 | G58: 2.29336764 | H58: 1 | I58: 2.29336764
C59: -0.2329341317 | D59: -0.6433012468 | E59: -0.2329341317 | F59: 2.761730288 | G59: 2.300301418 | H59: 1 | I59: 2.300301418
C60: -0.2317365269 | D60: -0.6405463948 | E60: -0.2317365269 | F60: 2.764114934 | G60: 2.307205504 | H60: 1 | I60: 2.307205504
C61: -0.2305389222 | D61: -0.6377832744 | E61: -0.2305389222 | F61: 2.766488489 | G61: 2.314079807 | H61: 1 | I61: 2.314079807
C62: -0.2293413174 | D62: -0.6350119214 | E62: -0.2293413174 | F62: 2.768850937 | G62: 2.32092424 | H62: 1 | I62: 2.32092424
C63: -0.2281437126 | D63: -0.6322323714 | E63: -0.2281437126 | F63: 2.771202258 | G63: 2.327738713 | H63: 1 | I63: 2.327738713
C64: -0.2269461078 | D64: -0.6294446604 | E64: -0.2269461078 | F64: 2.773542435 | G64: 2.334523139 | H64: 1 | I64: 2.334523139
C65: -0.225748503 | D65: -0.6266488243 | E65: -0.225748503 | F65: 2.77587145 | G65: 2.34127743 | H65: 1 | I65: 2.34127743
C66: -0.2245508982 | D66: =SIN(3*x) -> -0.6238448992 | E66: =x -> -0.2245508982 | F66: 2.778189284 | G66: 2.3480015 | H66: 1 | I66: 2.3480015
C67: -0.2233532934 | D67: -0.6210329214 | E67: -0.2233532934 | F67: 2.780495921 | G67: =(D68-D67)/dx -> 2.354695261 | H67: =(E68-E67)/dx -> 1 | I67: 2.354695261
C68: =C67+dx -> -0.2221556886 | D68: -0.618212927 | E68: -0.2221556886 | F68: =D68/E68 -> 2.782791343 | G68: 2.361358626 | H68: 1 | I68: =G68/H68 -> 2.361358626
C69: -0.2209580838 | D69: -0.6153849526 | E69: -0.2209580838 | F69: 2.785075531 | G69: 2.367991511 | H69: 1 | I69: 2.367991511
C70: -0.219760479 | D70: -0.6125490346 | E70: -0.219760479 | F70: 2.787348468 | G70: 2.374593829 | H70: 1 | I70: 2.374593829
C71: -0.2185628743 | D71: -0.6097052097 | E71: -0.2185628743 | F71: 2.789610138 | G71: 2.381165495 | H71: 1 | I71: 2.381165495
C72: -0.2173652695 | D72: -0.6068535145 | E72: -0.2173652695 | F72: 2.791860521 | G72: 2.387706424 | H72: 1 | I72: 2.387706424
C73: -0.2161676647 | D73: -0.6039939858 | E73: -0.2161676647 | F73: 2.794099602 | G73: 2.394216532 | H73: 1 | I73: 2.394216532
C74: -0.2149700599 | D74: -0.6011266607 | E74: -0.2149700599 | F74: 2.796327363 | G74: 2.400695734 | H74: 1 | I74: 2.400695734
C75: -0.2137724551 | D75: -0.5982515759 | E75: -0.2137724551 | F75: 2.798543787 | G75: 2.407143948 | H75: 1 | I75: 2.407143948
C76: -0.2125748503 | D76: -0.5953687688 | E76: -0.2125748503 | F76: 2.800748856 | G76: 2.413561089 | H76: 1 | I76: 2.413561089
C77: -0.2113772455 | D77: -0.5924782765 | E77: -0.2113772455 | F77: 2.802942555 | G77: 2.419947076 | H77: 1 | I77: 2.419947076
C78: -0.2101796407 | D78: -0.5895801363 | E78: -0.2101796407 | F78: 2.805124865 | G78: 2.426301825 | H78: 1 | I78: 2.426301825
C79: -0.2089820359 | D79: -0.5866743856 | E79: -0.2089820359 | F79: 2.807295771 | G79: 2.432625255 | H79: 1 | I79: 2.432625255
C80: -0.2077844311 | D80: -0.5837610619 | E80: -0.2077844311 | F80: 2.809455255 | G80: 2.438917283 | H80: 1 | I80: 2.438917283
C81: -0.2065868263 | D81: -0.5808402029 | E81: -0.2065868263 | F81: 2.811603301 | G81: 2.44517783 | H81: 1 | I81: 2.44517783
C82: -0.2053892216 | D82: -0.5779118462 | E82: -0.2053892216 | F82: 2.813739893 | G82: 2.451406813 | H82: 1 | I82: 2.451406813
C83: -0.2041916168 | D83: -0.5749760297 | E83: -0.2041916168 | F83: 2.815865013 | G83: 2.457604153 | H83: 1 | I83: 2.457604153
C84: -0.202994012 | D84: -0.5720327912 | E84: -0.202994012 | F84: 2.817978647 | G84: 2.463769769 | H84: 1 | I84: 2.463769769
C85: -0.2017964072 | D85: -0.5690821687 | E85: -0.2017964072 | F85: 2.820080777 | G85: 2.469903582 | H85: 1 | I85: 2.469903582
C86: -0.2005988024 | D86: -0.5661242004 | E86: -0.2005988024 | F86: 2.822171387 | G86: 2.476005513 | H86: 1 | I86: 2.476005513
C87: -0.1994011976 | D87: -0.5631589243 | E87: -0.1994011976 | F87: 2.824250461 | G87: 2.482075483 | H87: 1 | I87: 2.482075483
C88: -0.1982035928 | D88: -0.5601863788 | E88: -0.1982035928 | F88: 2.826317984 | G88: 2.488113413 | H88: 1 | I88: 2.488113413
C89: -0.197005988 | D89: -0.5572066023 | E89: -0.197005988 | F89: 2.828373939 | G89: 2.494119227 | H89: 1 | I89: 2.494119227
C90: -0.1958083832 | D90: -0.5542196331 | E90: -0.1958083832 | F90: 2.83041831 | G90: 2.500092845 | H90: 1 | I90: 2.500092845
C91: -0.1946107784 | D91: -0.55122551 | E91: -0.1946107784 | F91: 2.832451082 | G91: 2.506034191 | H91: 1 | I91: 2.506034191
C92: -0.1934131737 | D92: -0.5482242714 | E92: -0.1934131737 | F92: 2.834472239 | G92: 2.511943189 | H92: 1 | I92: 2.511943189
C93: -0.1922155689 | D93: -0.5452159562 | E93: -0.1922155689 | F93: 2.836481766 | G93: 2.517819762 | H93: 1 | I93: 2.517819762
C94: -0.1910179641 | D94: -0.5422006032 | E94: -0.1910179641 | F94: 2.838479647 | G94: 2.523663834 | H94: 1 | I94: 2.523663834
C95: -0.1898203593 | D95: -0.5391782513 | E95: -0.1898203593 | F95: 2.840465866 | G95: 2.52947533 | H95: 1 | I95: 2.52947533
C96: -0.1886227545 | D96: -0.5361489395 | E96: -0.1886227545 | F96: 2.84244041 | G96: 2.535254175 | H96: 1 | I96: 2.535254175
C97: -0.1874251497 | D97: -0.533112707 | E97: -0.1874251497 | F97: 2.844403261 | G97: 2.541000293 | H97: 1 | I97: 2.541000293
C98: -0.1862275449 | D98: -0.5300695929 | E98: -0.1862275449 | F98: 2.846354405 | G98: 2.546713612 | H98: 1 | I98: 2.546713612
C99: -0.1850299401 | D99: -0.5270196364 | E99: -0.1850299401 | F99: 2.848293828 | G99: 2.552394057 | H99: 1 | I99: 2.552394057
C100: -0.1838323353 | D100: -0.5239628771 | E100: -0.1838323353 | F100: 2.850221514 | G100: 2.558041555 | H100: 1 | I100: 2.558041555
C101: -0.1826347305 | D101: -0.5208993543 | E101: -0.1826347305 | F101: 2.852137448 | G101: 2.563656033 | H101: 1 | I101: 2.563656033
C102: -0.1814371257 | D102: -0.5178291075 | E102: -0.1814371257 | F102: 2.854041616 | G102: 2.569237419 | H102: 1 | I102: 2.569237419
C103: -0.180239521 | D103: -0.5147521765 | E103: -0.180239521 | F103: 2.855934002 | G103: 2.57478564 | H103: 1 | I103: 2.57478564
C104: -0.1790419162 | D104: -0.5116686009 | E104: -0.1790419162 | F104: 2.857814593 | G104: 2.580300625 | H104: 1 | I104: 2.580300625
C105: -0.1778443114 | D105: -0.5085784205 | E105: -0.1778443114 | F105: 2.859683374 | G105: 2.585782303 | H105: 1 | I105: 2.585782303
C106: -0.1766467066 | D106: -0.5054816752 | E106: -0.1766467066 | F106: 2.861540331 | G106: 2.591230602 | H106: 1 | I106: 2.591230602
C107: -0.1754491018 | D107: -0.502378405 | E107: -0.1754491018 | F107: 2.863385448 | G107: 2.596645453 | H107: 1 | I107: 2.596645453
C108: -0.174251497 | D108: -0.49926865 | E108: -0.174251497 | F108: 2.865218713 | G108: 2.602026786 | H108: 1 | I108: 2.602026786
C109: -0.1730538922 | D109: -0.4961524502 | E109: -0.1730538922 | F109: 2.86704011 | G109: 2.607374532 | H109: 1 | I109: 2.607374532
C110: -0.1718562874 | D110: -0.493029846 | E110: -0.1718562874 | F110: 2.868849627 | G110: 2.61268862 | H110: 1 | I110: 2.61268862
C111: -0.1706586826 | D111: -0.4899008776 | E111: -0.1706586826 | F111: 2.870647248 | G111: 2.617968983 | H111: 1 | I111: 2.617968983
C112: -0.1694610778 | D112: -0.4867655854 | E112: -0.1694610778 | F112: 2.87243296 | G112: 2.623215553 | H112: 1 | I112: 2.623215553
C113: -0.1682634731 | D113: -0.4836240099 | E113: -0.1682634731 | F113: 2.874206749 | G113: 2.628428261 | H113: 1 | I113: 2.628428261
C114: -0.1670658683 | D114: -0.4804761916 | E114: -0.1670658683 | F114: 2.875968602 | G114: 2.633607041 | H114: 1 | I114: 2.633607041
C115: -0.1658682635 | D115: -0.4773221712 | E115: -0.1658682635 | F115: 2.877718505 | G115: 2.638751825 | H115: 1 | I115: 2.638751825
C116: -0.1646706587 | D116: -0.4741619894 | E116: -0.1646706587 | F116: 2.879456445 | G116: 2.643862547 | H116: 1 | I116: 2.643862547
C117: -0.1634730539 | D117: -0.4709956869 | E117: -0.1634730539 | F117: 2.881182407 | G117: 2.648939142 | H117: 1 | I117: 2.648939142
C118: -0.1622754491 | D118: -0.4678233047 | E118: -0.1622754491 | F118: 2.88289638 | G118: 2.653981544 | H118: 1 | I118: 2.653981544
C119: -0.1610778443 | D119: -0.4646448837 | E119: -0.1610778443 | F119: 2.884598349 | G119: 2.658989687 | H119: 1 | I119: 2.658989687
C120: -0.1598802395 | D120: -0.4614604649 | E120: -0.1598802395 | F120: 2.886288301 | G120: 2.663963507 | H120: 1 | I120: 2.663963507
C121: -0.1586826347 | D121: -0.4582700895 | E121: -0.1586826347 | F121: 2.887966224 | G121: 2.66890294 | H121: 1 | I121: 2.66890294
C122: -0.1574850299 | D122: -0.4550737985 | E122: -0.1574850299 | F122: 2.889632105 | G122: 2.673807921 | H122: 1 | I122: 2.673807921
C123: -0.1562874251 | D123: -0.4518716334 | E123: -0.1562874251 | F123: 2.89128593 | G123: 2.678678389 | H123: 1 | I123: 2.678678389
C124: -0.1550898204 | D124: -0.4486636353 | E124: -0.1550898204 | F124: 2.892927687 | G124: 2.683514279 | H124: 1 | I124: 2.683514279
C125: -0.1538922156 | D125: -0.4454498457 | E125: -0.1538922156 | F125: 2.894557363 | G125: 2.68831553 | H125: 1 | I125: 2.68831553
C126: -0.1526946108 | D126: -0.4422303062 | E126: -0.1526946108 | F126: 2.896174946 | G126: 2.693082079 | H126: 1 | I126: 2.693082079
C127: -0.151497006 | D127: -0.4390050582 | E127: -0.151497006 | F127: 2.897780424 | G127: 2.697813865 | H127: 1 | I127: 2.697813865
C128: -0.1502994012 | D128: -0.4357741434 | E128: -0.1502994012 | F128: 2.899373783 | G128: 2.702510827 | H128: 1 | I128: 2.702510827
C129: -0.1491017964 | D129: -0.4325376035 | E129: -0.1491017964 | F129: 2.900955011 | G129: 2.707172903 | H129: 1 | I129: 2.707172903
C130: -0.1479041916 | D130: =SIN(3*x) -> -0.4292954802 | E130: =x -> -0.1479041916 | F130: 2.902524097 | G130: 2.711800035 | H130: 1 | I130: 2.711800035
C131: -0.1467065868 | D131: -0.4260478155 | E131: -0.1467065868 | F131: 2.904081028 | G131: =(D132-D131)/dx -> 2.716392163 | H131: =(E132-E131)/dx -> 1 | I131: 2.716392163
C132: =C131+dx -> -0.145508982 | D132: -0.4227946512 | E132: -0.145508982 | F132: =D132/E132 -> 2.905625792 | G132: 2.720949226 | H132: 1 | I132: =G132/H132 -> 2.720949226
C133: -0.1443113772 | D133: -0.4195360294 | E133: -0.1443113772 | F133: 2.907158378 | G133: 2.725471166 | H133: 1 | I133: 2.725471166
C134: -0.1431137725 | D134: -0.4162719921 | E134: -0.1431137725 | F134: 2.908678773 | G134: 2.729957925 | H134: 1 | I134: 2.729957925
C135: -0.1419161677 | D135: -0.4130025814 | E135: -0.1419161677 | F135: 2.910186966 | G135: 2.734409445 | H135: 1 | I135: 2.734409445
C136: -0.1407185629 | D136: -0.4097278395 | E136: -0.1407185629 | F136: 2.911682945 | G136: 2.738825669 | H136: 1 | I136: 2.738825669
C137: -0.1395209581 | D137: -0.4064478088 | E137: -0.1395209581 | F137: 2.913166698 | G137: 2.743206539 | H137: 1 | I137: 2.743206539
C138: -0.1383233533 | D138: -0.4031625315 | E138: -0.1383233533 | F138: 2.914638215 | G138: 2.747551998 | H138: 1 | I138: 2.747551998
C139: -0.1371257485 | D139: -0.3998720501 | E139: -0.1371257485 | F139: 2.916097483 | G139: 2.751861992 | H139: 1 | I139: 2.751861992
C140: -0.1359281437 | D140: -0.396576407 | E140: -0.1359281437 | F140: 2.917544492 | G140: 2.756136464 | H140: 1 | I140: 2.756136464
C141: -0.1347305389 | D141: -0.3932756447 | E141: -0.1347305389 | F141: 2.91897923 | G141: 2.760375358 | H141: 1 | I141: 2.760375358
C142: -0.1335329341 | D142: -0.389969806 | E142: -0.1335329341 | F142: 2.920401686 | G142: 2.764578621 | H142: 1 | I142: 2.764578621
C143: -0.1323353293 | D143: -0.3866589334 | E143: -0.1323353293 | F143: 2.92181185 | G143: 2.768746198 | H143: 1 | I143: 2.768746198
C144: -0.1311377246 | D144: -0.3833430697 | E144: -0.1311377246 | F144: 2.923209709 | G144: 2.772878035 | H144: 1 | I144: 2.772878035
C145: -0.1299401198 | D145: -0.3800222577 | E145: -0.1299401198 | F145: 2.924595255 | G145: 2.776974079 | H145: 1 | I145: 2.776974079
C146: -0.128742515 | D146: -0.3766965402 | E146: -0.128742515 | F146: 2.925968475 | G146: 2.781034277 | H146: 1 | I146: 2.781034277
C147: -0.1275449102 | D147: -0.3733659602 | E147: -0.1275449102 | F147: 2.92732936 | G147: 2.785058576 | H147: 1 | I147: 2.785058576
C148: -0.1263473054 | D148: -0.3700305607 | E148: -0.1263473054 | F148: 2.928677898 | G148: 2.789046925 | H148: 1 | I148: 2.789046925
C149: -0.1251497006 | D149: -0.3666903848 | E149: -0.1251497006 | F149: 2.930014079 | G149: 2.792999272 | H149: 1 | I149: 2.792999272
C150: -0.1239520958 | D150: -0.3633454755 | E150: -0.1239520958 | F150: 2.931337894 | G150: 2.796915567 | H150: 1 | I150: 2.796915567
C151: -0.122754491 | D151: -0.359995876 | E151: -0.122754491 | F151: 2.932649331 | G151: 2.800795758 | H151: 1 | I151: 2.800795758
C152: -0.1215568862 | D152: -0.3566416296 | E152: -0.1215568862 | F152: 2.933948381 | G152: 2.804639795 | H152: 1 | I152: 2.804639795
C153: -0.1203592814 | D153: -0.3532827795 | E153: -0.1203592814 | F153: 2.935235034 | G153: 2.808447629 | H153: 1 | I153: 2.808447629
C154: -0.1191616766 | D154: -0.3499193692 | E154: -0.1191616766 | F154: 2.936509279 | G154: 2.812219211 | H154: 1 | I154: 2.812219211
C155: -0.1179640719 | D155: -0.346551442 | E155: -0.1179640719 | F155: 2.937771107 | G155: 2.815954492 | H155: 1 | I155: 2.815954492
C156: -0.1167664671 | D156: -0.3431790414 | E156: -0.1167664671 | F156: 2.939020508 | G156: 2.819653424 | H156: 1 | I156: 2.819653424
C157: -0.1155688623 | D157: -0.3398022109 | E157: -0.1155688623 | F157: 2.940257473 | G157: 2.823315959 | H157: 1 | I157: 2.823315959
C158: -0.1143712575 | D158: -0.3364209942 | E158: -0.1143712575 | F158: 2.941481991 | G158: 2.826942049 | H158: 1 | I158: 2.826942049
C159: -0.1131736527 | D159: -0.3330354349 | E159: -0.1131736527 | F159: 2.942694054 | G159: 2.830531649 | H159: 1 | I159: 2.830531649
C160: -0.1119760479 | D160: -0.3296455766 | E160: -0.1119760479 | F160: 2.943893652 | G160: 2.834084711 | H160: 1 | I160: 2.834084711
C161: -0.1107784431 | D161: -0.3262514632 | E161: -0.1107784431 | F161: 2.945080776 | G161: 2.83760119 | H161: 1 | I161: 2.83760119
C162: -0.1095808383 | D162: -0.3228531384 | E162: -0.1095808383 | F162: 2.946255416 | G162: 2.841081041 | H162: 1 | I162: 2.841081041
C163: -0.1083832335 | D163: -0.3194506462 | E163: -0.1083832335 | F163: 2.947417564 | G163: 2.844524218 | H163: 1 | I163: 2.844524218
C164: -0.1071856287 | D164: -0.3160440303 | E164: -0.1071856287 | F164: 2.94856721 | G164: 2.847930677 | H164: 1 | I164: 2.847930677
C165: -0.105988024 | D165: -0.3126333349 | E165: -0.105988024 | F165: 2.949704346 | G165: 2.851300374 | H165: 1 | I165: 2.851300374
C166: -0.1047904192 | D166: -0.3092186039 | E166: -0.1047904192 | F166: 2.950828963 | G166: 2.854633265 | H166: 1 | I166: 2.854633265
C167: -0.1035928144 | D167: -0.3057998814 | E167: -0.1035928144 | F167: 2.951941052 | G167: 2.857929308 | H167: 1 | I167: 2.857929308
C168: -0.1023952096 | D168: -0.3023772116 | E168: -0.1023952096 | F168: 2.953040605 | G168: 2.86118846 | H168: 1 | I168: 2.86118846
C169: -0.1011976048 | D169: -0.2989506386 | E169: -0.1011976048 | F169: 2.954127612 | G169: 2.864410679 | H169: 1 | I169: 2.864410679
C170: -0.1 | D170: -0.2955202067 | E170: -0.1 | F170: 2.955202067 | G170: 2.867595924 | H170: 1 | I170: 2.867595924
C171: -0.09880239521 | D171: -0.29208596 | E171: -0.09880239521 | F171: 2.956263959 | G171: 2.870744152 | H171: 1 | I171: 2.870744152
C172: -0.09760479042 | D172: -0.2886479431 | E172: -0.09760479042 | F172: 2.957313282 | G172: 2.873855324 | H172: 1 | I172: 2.873855324
C173: -0.09640718563 | D173: -0.2852062002 | E173: -0.09640718563 | F173: 2.958350027 | G173: 2.8769294 | H173: 1 | I173: 2.8769294
C174: -0.09520958084 | D174: -0.2817607758 | E174: -0.09520958084 | F174: 2.959374186 | G174: 2.879966339 | H174: 1 | I174: 2.879966339
C175: -0.09401197605 | D175: -0.2783117143 | E175: -0.09401197605 | F175: 2.960385751 | G175: 2.882966103 | H175: 1 | I175: 2.882966103
C176: -0.09281437126 | D176: -0.2748590603 | E176: -0.09281437126 | F176: 2.961384714 | G176: 2.885928652 | H176: 1 | I176: 2.885928652
C177: -0.09161676647 | D177: -0.2714028583 | E177: -0.09161676647 | F177: 2.962371068 | G177: 2.888853949 | H177: 1 | I177: 2.888853949
C178: -0.09041916168 | D178: -0.267943153 | E178: -0.09041916168 | F178: 2.963344804 | G178: 2.891741956 | H178: 1 | I178: 2.891741956
C179: -0.08922155689 | D179: -0.2644799889 | E179: -0.08922155689 | F179: 2.964305916 | G179: 2.894592636 | H179: 1 | I179: 2.894592636
C180: -0.0880239521 | D180: -0.2610134109 | E180: -0.0880239521 | F180: 2.965254396 | G180: 2.897405951 | H180: 1 | I180: 2.897405951
C181: -0.08682634731 | D181: -0.2575434637 | E181: -0.08682634731 | F181: 2.966190237 | G181: 2.900181866 | H181: 1 | I181: 2.900181866
C182: -0.08562874251 | D182: -0.254070192 | E182: -0.08562874251 | F182: 2.967113431 | G182: 2.902920344 | H182: 1 | I182: 2.902920344
C183: -0.08443113772 | D183: -0.2505936407 | E183: -0.08443113772 | F183: 2.968023971 | G183: 2.90562135 | H183: 1 | I183: 2.90562135
C184: -0.08323353293 | D184: -0.2471138546 | E184: -0.08323353293 | F184: 2.968921851 | G184: 2.90828485 | H184: 1 | I184: 2.90828485
C185: -0.08203592814 | D185: -0.2436308788 | E185: -0.08203592814 | F185: 2.969807062 | G185: 2.910910809 | H185: 1 | I185: 2.910910809
C186: -0.08083832335 | D186: -0.240144758 | E186: -0.08083832335 | F186: 2.970679599 | G186: 2.913499192 | H186: 1 | I186: 2.913499192
C187: -0.07964071856 | D187: -0.2366555374 | E187: -0.07964071856 | F187: 2.971539455 | G187: 2.916049968 | H187: 1 | I187: 2.916049968
C188: -0.07844311377 | D188: -0.233163262 | E188: -0.07844311377 | F188: 2.972386623 | G188: 2.918563102 | H188: 1 | I188: 2.918563102
C189: -0.07724550898 | D189: -0.2296679769 | E189: -0.07724550898 | F189: 2.973221096 | G189: 2.921038563 | H189: 1 | I189: 2.921038563
C190: -0.07604790419 | D190: -0.2261697271 | E190: -0.07604790419 | F190: 2.974042868 | G190: 2.923476318 | H190: 1 | I190: 2.923476318
C191: -0.0748502994 | D191: -0.2226685579 | E191: -0.0748502994 | F191: 2.974851933 | G191: 2.925876335 | H191: 1 | I191: 2.925876335
C192: -0.07365269461 | D192: -0.2191645143 | E192: -0.07365269461 | F192: 2.975648284 | G192: 2.928238585 | H192: 1 | I192: 2.928238585
C193: -0.07245508982 | D193: -0.2156576418 | E193: -0.07245508982 | F193: 2.976431916 | G193: 2.930563036 | H193: 1 | I193: 2.930563036
C194: -0.07125748503 | D194: =SIN(3*x) -> -0.2121479855 | E194: =x -> -0.07125748503 | F194: 2.977202821 | G194: 2.932849659 | H194: 1 | I194: 2.932849659
C195: -0.07005988024 | D195: -0.2086355907 | E195: -0.07005988024 | F195: 2.977960995 | G195: =(D196-D195)/dx -> 2.935098423 | H195: =(E196-E195)/dx -> 1 | I195: 2.935098423
C196: =C195+dx -> -0.06886227545 | D196: -0.2051205027 | E196: -0.06886227545 | F196: =D196/E196 -> 2.978706431 | G196: 2.937309301 | H196: 1 | I196: =G196/H196 -> 2.937309301
C197: -0.06766467066 | D197: -0.201602767 | E197: -0.06766467066 | F197: 2.979439123 | G197: 2.939482262 | H197: 1 | I197: 2.939482262
C198: -0.06646706587 | D198: -0.198082429 | E198: -0.06646706587 | F198: 2.980159067 | G198: 2.94161728 | H198: 1 | I198: 2.94161728
C199: -0.06526946108 | D199: -0.1945595341 | E199: -0.06526946108 | F199: 2.980866256 | G199: 2.943714327 | H199: 1 | I199: 2.943714327
C200: -0.06407185629 | D200: -0.1910341277 | E200: -0.06407185629 | F200: 2.981560684 | G200: 2.945773375 | H200: 1 | I200: 2.945773375
... 304 more rows

Sheet Defining Function
A1: Defining a Function in Excel
A3: Computers have very specific rules you must follow when defining a function. If you don't, the program will either not work at all or will work incorrectly.
A5: 1. The Variable used should be the one named in the instruction, usually x, though sometimes y, t, Q (for an angle theta),
A6: or even x and y (for a function of two variables).
A8: 2. Order of Operations: There five arithmetic operations, addition (+), subtraction (-), multiplication (*), division (/), and exponentiation or power (^). When computers see any of these operation symbols, they perform the indicated steps in a very particular order. First, the power is done. Second, products and quotients of adjacent terms is done. Third, and last, sums and differences of adjacent terms are done. So, in 10*x^3 + 5*x – 7, say with x = 2, the first pass only calculates 2^3 and ignores the multiplications and the sums and differences to calculate 2^3 = 8. The second pass looks at 10*8 + 5*2 – 7 and only does the multiplications, so it produces 80 + 10 - 7. The third pass looks at the +’s and –‘s to produce 80 + 10 – 7 = 83.
A10: 3. Parentheses If you need an operation involving more than two adjacent terms, as in Ö4^3 + 6^2, the computer would take the square root of 4 to produce 2^3 + 6^2; it would then cube the 2 and square the 6 to produce 8 + 36; and finally it would add the 8 and the 36 to get 44. If you actually wanted the square root of the entire expression, you would need to use parentheses, as in Ö(4^3 + 6^2) to tell the computer to do all the operations inside the parentheses before taking the square root. Therefore, it would calculate (4^3 + 6^2) = 64 + 36 = 100 and then take the square root of Ö100 = 10.
A12: 4. Built-In Functions Computer programs have built-in functions for most common algebraic functions. In Excel, the square root function is denoted by SQRT(…), so SQRT(100) = 10. Alternatively, you could enter it as 100^.5 or 100^(1/2); notice that parentheses are needed to have the ½ done first. The common trig functions are SIN (…), COS (…), and TAN (…), where the arguments are automatically interpreted as being in radians, not degrees. The logarithm to the base 10 is represented by LOG (…) and the logarithm with the base e, known as the natural logarithm, is LN (…). The corresponding exponential function with base e is EXP (x). If x is the variable, then each of these would be SQRT (x), SIN (x), COS (x), TAN (x), LOG (x) (for log with base 10 ), LN (x) (for log with base e ), and EXP (x).

Sheet Sheet3
